bitfinex-derivatives/quotes_SOLF0:USTF0_20260217
["timestamp","ask_amount","ask_price","bid_price","bid_amount"]
[1771293851883,8.23579817,85.829,85.762,8.61624693]
[1771293853284,8.23579817,85.829,85.763,8.61624693]
[1771293853480,8.23579817,85.829,85.764,8.61624693]
[1771293853688,8.23579817,85.829,85.765,8.61624693]
[1771293854885,8.23579817,85.829,85.768,8.59626986]
[1771293856188,8.23579817,85.829,85.772,8.59626986]
[1771293856584,10.4902,85.842,85.772,8.59626986]
[1771293856789,8.7777776,85.845,85.785,8.59626986]
[1771293858694,8.7777776,85.845,85.787,8.59626986]
[1771293860183,6.91424474,85.87,85.801,8.59626986]
[1771293860184,8.7777776,85.862,85.801,8.59626986]
[1771293860588,6.91424474,85.87,85.801,19.09136986]
[1771293860589,8.7777776,85.858,85.801,19.09136986]
[1771293860782,8.7777776,85.858,85.802,8.59626986]
[1771293861187,19.2660776,85.858,85.802,8.59626986]
[1771293861395,8.7777776,85.857,85.802,8.59626986]
[1771293861900,8.7777776,85.857,85.794,14.43730058]
[1771293861901,8.7777776,85.857,85.803,8.59626986]
[1771293862190,8.7777776,85.872,85.803,8.59626986]
[1771293862488,8.7777776,85.872,85.814,8.59626986]
[1771293862887,10.4857,85.879,85.814,8.59626986]
[1771293863594,19.2622776,85.888,85.829,8.59626986]
[1771293863789,8.7777776,85.888,85.829,8.59626986]
[1771293864390,10.4834,85.897,85.84,8.59626986]
[1771293865698,10.4834,85.897,85.846,10.4895]
[1771293866399,10.4834,85.897,85.84,8.59626986]
[1771293867192,19.2611776,85.897,85.841,10.4902]
[1771293867398,19.2611776,85.897,85.841,19.08646986]
[1771293867798,8.7777776,85.914,85.844,8.59626986]
[1771293868388,8.7777776,85.914,85.866,10.4871]
[1771293868997,8.7777776,85.914,85.867,8.59626986]
[1771293869303,8.7777776,85.929,85.867,8.59626986]
[1771293869500,19.2572776,85.929,85.872,8.59626986]
[1771293870091,8.7777776,85.926,85.872,8.59626986]
[1771293871204,20.9488,85.971,85.856,8.59626986]
[1771293871205,8.7777776,85.924,85.856,8.59626986]
[1771293872503,8.7777776,85.909,85.856,8.59626986]
[1771293873497,8.7777776,85.906,85.856,19.08456986]
[1771293873704,8.7777776,85.906,85.857,8.59626986]
[1771293874098,8.7777776,85.921,85.863,8.59626986]
[1771293874799,8.7777776,85.919,85.865,8.59626986]
[1771293875102,8.7777776,85.934,85.865,8.59626986]
[1771293875298,8.7777776,85.934,85.88,10.4854]
[1771293875904,8.7777776,85.932,85.88,10.4854]
[1771293877202,8.7777776,85.932,85.887,10.4845]
[1771293877509,8.7777776,85.952,85.888,8.59626986]
[1771293877704,8.7777776,85.952,85.89,8.59626986]
[1771293878114,10.478,85.942,85.89,8.59626986]
[1771293878409,8.7777776,85.941,85.89,8.59626986]
[1771293878606,8.7777776,85.941,85.887,10.4845]
[1771293878813,8.7777776,85.938,85.874,8.59626986]
[1771293879104,8.7777776,85.938,85.886,10.4847]
[1771293879308,8.7777776,85.934,85.874,8.59626986]
[1771293879706,8.7777776,85.934,85.886,10.4847]
[1771293880112,8.7777776,85.934,85.874,8.59626986]
[1771293880703,8.7777776,85.934,85.885,10.4848]
[1771293881715,8.7777776,85.951,85.889,8.59626986]
[1771293881914,6.91424474,85.95,85.889,8.59626986]
[1771293882119,8.7777776,85.949,85.889,8.59626986]
[1771293882306,8.7777776,85.943,85.889,8.59626986]
[1771293883017,8.7777776,85.969,85.889,8.59626986]
[1771293883919,8.7777776,85.949,85.891,8.59626986]
[1771293884711,10.4786,85.937,85.891,8.59626986]
[1771293885119,8.7777776,85.949,85.891,8.59626986]
[1771293886513,8.7777776,85.949,85.894,8.01689405]
[1771293886514,10.4775,85.946,85.894,8.01689405]
[1771293886716,8.7777776,85.949,85.894,8.01689405]
[1771293886916,8.81889596,85.967,85.894,8.01689405]
[1771293887216,10.4758,85.96,85.91,8.01689405]
[1771293887813,8.81889596,85.967,85.913,8.01689405]
[1771293888212,14.06624061,86.082,85.913,8.01689405]
[1771293888213,8.81889596,85.982,85.913,8.01689405]
[1771293889724,10.4736,85.978,85.924,8.3561091]
[1771293889922,8.81889596,85.982,85.924,8.3561091]
[1771293890323,8.81889596,85.982,85.935,8.3561091]
[1771293890524,8.82446222,85.998,85.935,8.3561091]
[1771293891622,10.4714,85.996,85.944,10.4776]
[1771293893027,73.18,86.023,85.887,20.9691]
[1771293893028,10.4703,86.005,85.947,8.3561091]
[1771293893333,8.82446222,86.014,85.947,8.3561091]
[1771293894033,8.82446222,86.014,85.968,8.3561091]
[1771293894219,8.82446222,86.029,85.968,8.3561091]
[1771293895425,8.82446222,86.026,85.955,8.3561091]
[1771293896029,10.4681,86.023,85.967,10.4748]
[1771293896235,8.82446222,86.022,85.967,10.4748]
[1771293896731,8.82446222,86.022,85.955,8.3561091]
[1771293898126,8.82446222,86.021,85.957,8.3561091]
[1771293899829,8.82446222,86.021,85.965,8.3561091]
[1771293900436,8.82446222,86.037,85.979,8.3561091]
[1771293900734,8.82446222,86.059,85.979,8.3561091]
[1771293900939,10.4675,86.028,85.979,8.3561091]
[1771293901127,6.91424474,86.05,85.951,8.3561091]
[1771293901128,8.82446222,86.027,85.951,8.3561091]
[1771293901524,8.82446222,86.009,85.921,8.3561091]
[1771293901726,8.82446222,86.029,85.941,8.3561091]
[1771293901932,8.82446222,86.029,85.968,8.3561091]
[1771293902436,8.82446222,86.029,85.971,10.4743]
[1771293903439,8.82446222,86.029,85.981,8.3561091]
[1771293903830,8.82446222,86.029,85.983,10.4728]
[1771293904634,8.82446222,86.047,85.986,8.3561091]
[1771293905837,8.82446222,86.047,85.988,8.3561091]
[1771293906723,8.82446222,86.047,85.96,6.91424474]
[1771293906724,8.82446222,86.065,85.99,8.3561091]
[1771293908235,8.82446222,86.053,85.996,10.4713]
[1771293908833,8.82446222,86.053,86.0,10.4707]
[1771293909235,8.82446222,86.053,86.001,8.3561091]
[1771293909541,8.82446222,86.069,86.001,8.3561091]
[1771293909938,8.82446222,86.049,85.986,8.3561091]
[1771293910536,19.28946222,86.048,85.986,8.3561091]
[1771293910736,8.82446222,86.047,85.986,8.3561091]
[1771293911745,8.82446222,86.047,85.997,10.4712]
[1771293913636,8.82446222,86.047,86.001,10.4706]
[1771293914037,8.36385133,86.056,86.002,7.97853177]
[1771293914436,10.4645,86.053,86.002,7.97853177]
[1771293914642,80.09424474,86.07,86.003,10.4704]
[1771293914643,8.36385133,86.052,86.003,10.4704]
[1771293915339,8.36385133,86.052,86.008,10.4698]
[1771293915535,8.36385133,86.052,86.008,7.97853177]
[1771293916242,8.36385133,86.052,85.993,7.97853177]
[1771293916836,8.36385133,86.052,86.006,10.4701]
[1771293917435,8.36385133,86.052,86.006,18.44863177]
[1771293917635,8.36385133,86.052,86.008,10.4697]
[1771293917839,8.36385133,86.052,86.007,7.97853177]
[1771293918243,8.36385133,86.052,86.01,10.4695]
[1771293919640,8.36385133,86.052,86.0,10.4708]
[1771293920044,8.36385133,86.052,86.001,7.97853177]
[1771293920249,8.36385133,86.052,86.006,10.4701]
[1771293921953,8.36385133,86.052,86.001,7.97853177]
[1771293922550,8.36385133,86.052,86.002,10.4705]
[1771293922746,8.36385133,86.052,86.002,18.44903177]
[1771293923250,8.36385133,86.052,86.012,10.4693]
[1771293924044,8.36385133,86.052,86.004,7.97853177]
[1771293924344,8.36385133,86.052,85.971,7.97853177]
[1771293924542,8.36385133,86.021,85.971,7.97853177]
[1771293926249,8.36385133,86.021,85.972,10.4742]
[1771293926554,8.36385133,86.021,85.972,18.45273177]
[1771293927958,2.7545207,86.02,85.972,18.45273177]
[1771293928351,2.7545207,86.01,85.972,7.97853177]
[1771293928953,2.7545207,86.0,85.962,10.4754]
[1771293929657,2.7545207,86.0,85.962,18.45393177]
[1771293929951,8.36385133,86.009,85.962,18.45393177]
[1771293930156,8.36385133,86.009,85.963,7.97853177]
[1771293930552,2.7545207,86.02,85.97,7.97853177]
[1771293931152,2.7545207,86.01,85.97,7.97853177]
[1771293931864,8.36385133,86.016,85.97,7.97853177]
[1771293932046,8.36385133,86.016,85.954,7.97853177]
[1771293932755,8.36385133,86.016,85.92,6.88734175]
[1771293932756,8.36385133,85.995,85.933,7.97853177]
[1771293933162,8.36385133,85.995,85.936,7.97853177]
[1771293933661,8.36385133,85.995,85.951,10.4768]
[1771293934262,8.36385133,85.995,85.936,22.26131162]
[1771293934263,8.36385133,85.995,85.941,10.4779]
[1771293935858,8.36385133,85.995,85.941,18.45643177]
[1771293936059,8.36385133,85.995,85.942,7.97853177]
[1771293936962,8.36385133,86.009,85.947,7.97853177]
[1771293937362,20.9217,86.083,85.951,7.97853177]
[1771293937363,8.36385133,86.039,85.951,7.97853177]
[1771293937963,8.36385133,86.027,85.973,10.4741]
[1771293938468,8.36385133,86.027,85.974,7.97853177]
[1771293939459,8.36385133,86.027,85.987,10.4724]
[1771293940261,8.36385133,86.039,85.993,10.4716]
[1771293941764,8.36385133,86.039,86.001,10.4707]
[1771293941968,8.36385133,86.054,86.001,10.4707]
[1771293942173,8.36385133,86.054,86.002,7.97853177]
[1771293942966,8.36385133,86.072,86.023,10.4679]
[1771293943475,8.36385133,86.072,85.933,28.5655597]
[1771293943476,8.36385133,86.088,86.028,7.97853177]
[1771293944070,73.18,86.099,86.011,7.91348448]
[1771293944071,7.86864764,86.069,86.011,7.91348448]
[1771293944468,7.86864764,86.069,85.993,7.91348448]
[1771293945466,7.86864764,86.055,85.997,10.4712]
[1771293946876,7.86864764,86.055,86.0,10.4707]
[1771293947078,7.86864764,86.055,86.001,7.91348448]
[1771293947276,17.34964175,86.07,86.001,7.91348448]
[1771293948174,25.21828939,86.07,86.001,7.91348448]
[1771293948577,10.4627,86.067,86.013,10.4692]
[1771293948881,10.4627,86.067,86.013,18.38268448]
[1771293949085,10.4627,86.067,86.014,7.91348448]
[1771293950675,10.4627,86.067,86.015,10.469]
[1771293950974,10.4627,86.067,86.015,18.31891846]
[1771293951178,10.4627,86.067,86.016,7.84991846]
[1771293951382,7.86864764,86.069,86.021,10.4682]
[1771293953081,10.4605,86.086,86.033,10.4667]
[1771293953385,6.88734175,86.09,85.991,7.84991846]
[1771293953386,7.63455837,86.085,85.991,7.84991846]
[1771293953992,2.75215715,86.05,86.001,7.84991846]
[1771293954577,7.63455837,86.064,86.022,10.4681]
[1771293954786,2.75215715,86.06,86.022,10.4681]
[1771293955385,2.75215715,86.05,86.011,10.4694]
[1771293955883,10.49115125,86.111,86.002,10.4705]
[1771293955884,7.63455837,86.049,86.002,10.4705]
[1771293957485,10.4648,86.05,85.992,10.4717]
[1771293957486,7.63455837,86.045,85.992,10.4717]
[1771293958891,10.4657,86.043,85.992,10.4717]
[1771293959289,18.10025837,86.043,85.992,10.4717]
[1771293959489,7.63455837,86.042,85.992,10.4717]
[1771293960192,7.63455837,86.042,85.995,7.84991846]
[1771293961088,20.92,86.09,86.001,7.84991846]
[1771293961089,7.63455837,86.074,86.001,7.84991846]
[1771293961991,7.63455837,86.074,86.021,7.84991846]
[1771293962588,7.63455837,86.074,85.989,73.18]
[1771293962589,10.4607,86.083,86.025,7.84991846]
[1771293962985,7.63455837,86.082,86.025,7.84991846]
[1771293963382,7.63455837,86.08,86.029,10.4673]
[1771293963582,7.63455837,86.08,86.025,7.84991846]
[1771293964797,7.63455837,86.08,86.036,10.4663]
[1771293965200,7.63455837,86.08,86.0,6.88181994]
[1771293965201,7.63455837,86.094,86.037,7.84991846]
[1771293966501,7.63455837,86.107,86.053,7.84991846]
[1771293966992,10.4581,86.105,86.053,7.84991846]
[1771293967186,7.63455837,86.104,86.053,7.84991846]
[1771293967901,7.63455837,86.093,86.038,10.4662]
[1771293968800,7.63455837,86.09,86.038,10.4662]
[1771293970299,7.63455837,86.09,86.041,7.84991846]
[1771293971003,7.63455837,86.09,86.044,10.4655]
[1771293971899,10.4583,86.103,86.054,7.84991846]
[1771293972900,10.4583,86.103,86.056,7.84991846]
[1771293973700,10.4583,86.103,86.057,18.31371846]
[1771293974099,7.63455837,86.109,86.057,18.31371846]
[1771293974504,7.63455837,86.109,86.06,17.46728458]
[1771293975105,7.63455837,86.109,86.061,7.00388458]
[1771293975903,7.63455837,86.109,86.063,7.00388458]
[1771293976299,10.4577,86.108,86.063,7.00388458]
[1771293976499,7.63455837,86.109,86.064,10.463]
[1771293976707,2.74859453,86.11,86.065,7.00388458]
[1771293976906,2.74859453,86.12,86.065,7.00388458]
[1771293977107,2.74859453,86.11,86.065,7.00388458]
[1771293977703,2.74859453,86.11,86.068,7.00388458]
[1771293978810,2.74859453,86.11,86.07,17.46618458]
[1771293979102,2.74859453,86.11,86.071,7.00388458]
[1771293980304,2.74859453,86.11,86.074,10.4618]
[1771293980504,2.74859453,86.12,86.075,7.00388458]
[1771293981712,2.74859453,86.12,86.083,10.4606]
[1771293981904,2.74784426,86.12,86.075,7.00388458]
[1771293983907,2.74784426,86.12,86.076,7.00388458]
[1771293984713,2.74784426,86.12,86.077,17.46528458]
[1771293985117,2.74784426,86.12,86.078,7.00388458]
[1771293985616,7.35532944,86.124,86.078,7.00388458]
[1771293986812,2.74784426,86.13,86.082,7.00388458]
[1771293987013,7.35532944,86.128,86.082,7.00388458]
[1771293987211,2.74784426,86.12,86.082,7.00388458]
[1771293988217,2.74784426,86.12,86.084,10.4605]
[1771293988817,7.35532944,86.128,86.084,10.4605]
[1771293989921,7.35532944,86.128,86.085,7.00388458]
[1771293992318,10.1031737,86.12,86.073,10.4619]
[1771293992510,2.74784426,86.11,86.074,7.00388458]
[1771293992815,7.35532944,86.119,86.074,7.00388458]
[1771293993317,7.35532944,86.115,86.074,7.00388458]
[1771293993919,2.74784426,86.11,86.074,7.00388458]
[1771293995613,2.74784426,86.09,86.03,2.74784426]
[1771293995813,7.35532944,86.089,86.031,7.00388458]
[1771293996418,7.35532944,86.089,86.049,10.4648]
[1771293996618,7.35532944,86.089,86.008,101.8075621]
[1771293996824,7.35532944,86.068,86.021,7.00388458]
[1771293997325,2.74784426,86.09,86.045,10.4653]
[1771293997525,2.74784426,86.1,86.046,7.00388458]
[1771293998027,7.35532944,86.1,86.059,10.4636]
[1771293998228,7.35532944,86.146,86.061,7.00388458]
[1771293998521,2.74784426,86.12,86.07,2.74784426]
[1771293998720,2.74784426,86.12,86.071,7.00388458]
[1771293999126,10.1031737,86.13,86.073,7.00388458]
[1771294000734,10.1031737,86.13,86.028,34.84]
[1771294000735,7.35532944,86.146,86.091,7.00388458]
[1771294001222,2.74784426,86.14,86.091,7.00388458]
[1771294001622,2.74784426,86.14,86.059,85.08]
[1771294001623,2.74784426,86.14,86.093,7.00388458]
[1771294002426,7.35532944,86.146,86.093,7.00388458]
[1771294002628,2.74784426,86.14,86.093,7.00388458]
[1771294002931,7.35532944,86.146,86.093,7.00388458]
[1771294003519,10.1031737,86.12,86.081,10.4609]
[1771294003831,2.74784426,86.14,86.082,7.00388458]
[1771294004032,7.35532944,86.144,86.082,7.00388458]
[1771294004328,2.74784426,86.14,86.091,7.01426061]
[1771294005327,2.74784426,86.14,86.09,2.74784426]
[1771294005328,2.74784426,86.14,86.095,7.01426061]
[1771294005529,2.74784426,86.13,86.095,7.01426061]
[1771294006433,6.95101299,86.139,86.095,7.01426061]
[1771294008932,6.95101299,86.139,86.098,7.01426061]
[1771294009630,2.74784426,86.13,86.084,6.99572023]
[1771294009935,2.74784426,86.12,86.084,6.99572023]
[1771294010831,6.43872002,86.119,86.067,6.99572023]
[1771294011036,2.74784426,86.11,86.067,6.99572023]
[1771294011433,2.74784426,86.11,86.07,6.99572023]
[1771294011636,6.43872002,86.119,86.07,6.99572023]
[1771294012437,6.43872002,86.119,86.071,6.99572023]
[1771294012638,2.74784426,86.11,86.071,6.99572023]
[1771294012937,6.43872002,86.119,86.071,6.99572023]
[1771294013838,6.43872002,86.119,86.072,6.99572023]
[1771294014034,2.74784426,86.13,86.072,6.99572023]
[1771294014628,2.74784426,86.14,86.094,6.99572023]
[1771294015229,2.74784426,86.14,86.09,2.74784426]
[1771294015230,2.74784426,86.15,86.097,6.99572023]
[1771294015430,6.43872002,86.149,86.097,6.99572023]
[1771294015631,2.74784426,86.14,86.097,6.99572023]
[1771294015837,2.74784426,86.14,86.068,14.3875621]
[1771294015838,2.74784426,86.14,86.1,6.99572023]
[1771294016038,6.43872002,86.149,86.1,6.99572023]
[1771294016839,6.43872002,86.148,86.1,6.99572023]
[1771294017041,2.74784426,86.14,86.1,6.99572023]
[1771294017238,6.43872002,86.171,86.115,6.99572023]
[1771294017432,2.74784426,86.16,86.115,6.99572023]
[1771294017836,2.74784426,86.15,86.115,6.99572023]
[1771294018044,9.18656428,86.14,86.088,6.99572023]
[1771294018339,6.43872002,86.139,86.091,6.99572023]
[1771294018934,6.43872002,86.139,86.095,10.4591]
[1771294019339,6.43872002,86.139,86.095,17.45482023]
[1771294019842,2.74784426,86.13,86.086,6.99572023]
[1771294020436,2.74784426,86.14,86.096,6.99572023]
[1771294021237,6.43872002,86.137,86.085,6.99572023]
[1771294022342,2.74784426,86.13,86.085,6.99572023]
[1771294022540,2.74784426,86.13,86.07,2.74784426]
[1771294022541,2.74784426,86.13,86.086,6.99572023]
[1771294023137,2.74784426,86.15,86.096,6.99572023]
[1771294023338,6.43872002,86.149,86.096,6.99572023]
[1771294023750,6.43872002,86.149,86.099,17.45442023]
[1771294025046,6.43872002,86.149,86.099,6.99572023]
[1771294025644,2.74784426,86.14,86.099,6.99572023]
[1771294025849,6.43872002,86.139,86.09,10.4598]
[1771294026050,2.74784426,86.13,86.09,10.4598]
[1771294026952,2.74784426,86.13,86.098,10.4589]
[1771294028343,2.74784426,86.13,86.085,6.99572023]
[1771294028552,2.74784426,86.12,86.085,6.99572023]
[1771294029058,2.74784426,86.13,86.085,6.99572023]
[1771294029249,6.43872002,86.129,86.085,6.99572023]
[1771294029450,6.43872002,86.129,86.087,10.4602]
[1771294029654,6.43872002,86.129,86.088,6.99572023]
[1771294030159,2.74784426,86.14,86.09,6.99572023]
[1771294030343,34.86,86.195,86.09,6.99572023]
[1771294030344,2.74784426,86.15,86.091,6.99572023]
[1771294030544,6.43872002,86.158,86.101,6.99572023]
[1771294030964,10.59312881,86.199,86.102,6.99572023]
[1771294030965,6.43872002,86.149,86.102,6.99572023]
[1771294031462,2.74784426,86.16,86.102,6.99572023]
[1771294031662,2.74784426,86.16,86.1,2.74784426]
[1771294031663,10.4517,86.158,86.113,17.45272023]
[1771294031868,2.74784426,86.16,86.113,17.45272023]
[1771294032556,2.74784426,86.15,86.113,6.99572023]
[1771294034463,6.43872002,86.159,86.113,6.99572023]
[1771294035658,6.43872002,86.159,86.114,17.22725081]
[1771294036569,6.43872002,86.159,86.115,6.77035081]
[1771294037059,2.74784426,86.15,86.115,6.77035081]
[1771294040260,2.74784426,86.14,86.106,10.4579]
[1771294042266,2.74784426,86.15,86.111,6.77035081]
[1771294042968,2.74784426,86.15,86.112,17.22755081]
[1771294043363,9.52355372,86.16,86.113,6.77035081]
[1771294043872,2.74494874,86.17,86.124,6.77035081]
[1771294044671,2.74494874,86.17,86.125,10.4556]
[1771294044971,2.74494874,86.17,86.126,6.77035081]
[1771294045472,2.74494874,86.18,86.128,6.77035081]
[1771294046664,2.74494874,86.18,86.137,10.4541]
[1771294046864,6.77570946,86.187,86.138,6.77035081]
[1771294047671,6.77570946,86.187,86.141,6.77035081]
[1771294047969,2.74494874,86.2,86.141,6.77035081]
[1771294048675,2.74494874,86.2,86.14,2.74494874]
[1771294048676,2.74494874,86.2,86.153,6.77035081]
[1771294049172,2.74494874,86.2,86.157,6.77035081]
[1771294049669,6.77570946,86.198,86.148,6.77035081]
[1771294049864,2.74494874,86.21,86.151,6.77035081]
[1771294050273,2.74494874,86.21,86.168,6.77035081]
[1771294050967,6.77570946,86.22,86.168,6.77035081]
[1771294050968,6.77570946,86.219,86.168,6.77035081]
[1771294051168,2.74494874,86.21,86.168,6.77035081]
[1771294051572,2.74494874,86.21,86.172,10.4499]
[1771294052170,2.74494874,86.21,86.173,6.77035081]
[1771294052370,6.77570946,86.219,86.175,10.4495]
[1771294053266,6.77570946,86.219,86.175,17.21985081]
[1771294054275,6.77570946,86.219,86.176,6.77035081]
[1771294054466,2.74494874,86.22,86.182,6.77035081]
[1771294055784,6.77570946,86.209,86.174,10.4496]
[1771294055970,6.77570946,86.209,86.169,6.77035081]
[1771294056271,2.74494874,86.2,86.151,6.77035081]
[1771294057071,2.74494874,86.19,86.152,6.77035081]
[1771294057476,6.77570946,86.199,86.152,6.77035081]
[1771294058273,6.77570946,86.199,86.156,6.77035081]
[1771294058878,2.74494874,86.21,86.159,6.77035081]
[1771294060078,6.77570946,86.209,86.159,6.77035081]
[1771294061180,2.74494874,86.22,86.164,6.77035081]
[1771294061476,2.74494874,86.23,86.171,6.77035081]
[1771294061777,2.74494874,86.23,86.184,6.77035081]
[1771294061972,6.77570946,86.236,86.184,6.77035081]
[1771294062371,6.77570946,86.236,86.196,10.447]
[1771294062772,6.77570946,86.236,86.197,6.77035081]
[1771294062979,10.4411,86.245,86.197,6.77035081]
[1771294063176,6.77570946,86.266,86.21,2.74494874]
[1771294063474,2.74494874,86.28,86.221,6.77035081]
[1771294063677,2.74494874,86.28,86.238,17.21225081]
[1771294063871,2.74494874,86.31,86.251,6.77035081]
[1771294064071,6.77570946,86.316,86.206,162.4892]
[1771294064072,6.77570946,86.316,86.266,6.11607122]
[1771294064283,6.20126823,86.359,86.271,6.11607122]
[1771294064582,2.74494874,86.33,86.271,6.11607122]
[1771294064768,2.74494874,86.33,86.284,6.11607122]
[1771294064971,15.24335715,86.36,86.301,6.11607122]
[1771294065471,5.715e-05,86.36,86.332,6.11607122]
[1771294065677,2.74494874,86.4,86.351,6.11607122]
[1771294065872,10.57738982,86.486,86.351,6.11607122]
[1771294066076,10.57738982,86.486,86.33,6.82386239]
[1771294066077,6.82386239,86.44,86.369,6.11607122]
[1771294066573,73.1,86.463,86.371,6.11607122]
[1771294066879,6.82386239,86.46,86.371,6.11607122]
[1771294067275,10.4117,86.489,86.391,6.11607122]
[1771294067579,6.82386239,86.49,86.393,6.11607122]
[1771294067774,6.82386239,86.47,86.393,6.11607122]
[1771294067974,4.50612981,86.469,86.393,6.11607122]
[1771294068170,4.50612981,86.449,86.393,6.11607122]
[1771294068366,4.50612981,86.449,86.367,6.11607122]
[1771294069275,4.47798562,86.444,86.367,6.11607122]
[1771294070273,4.98653946,86.436,86.367,6.11607122]
[1771294070870,4.95830429,86.429,86.348,5.77319267]
[1771294071070,162.0199,86.457,86.348,5.77319267]
[1771294071071,4.95830429,86.409,86.348,5.77319267]
[1771294071480,4.93591866,86.407,86.348,5.77319267]
[1771294071678,4.93591866,86.407,86.327,5.77319267]
[1771294072077,4.98135944,86.406,86.327,5.77319267]
[1771294073280,4.98135944,86.406,86.328,5.77319267]
[1771294073879,4.93187712,86.404,86.328,5.77319267]
[1771294075284,4.93187712,86.404,86.33,5.77319267]
[1771294076686,4.93187712,86.404,86.332,5.77319267]
[1771294078387,4.93187712,86.404,86.31,6.82386239]
[1771294078388,4.93187712,86.404,86.334,5.77319267]
[1771294078789,4.86257943,86.42,86.334,5.77319267]
[1771294079091,4.85733209,86.419,86.334,5.77319267]
[1771294079288,4.85733209,86.418,86.334,5.77319267]
[1771294080585,4.82258403,86.437,86.339,5.77319267]
[1771294080986,4.82258403,86.437,86.31,6.82386239]
[1771294080987,4.81743377,86.433,86.36,5.77319267]
[1771294082385,4.81743377,86.433,86.376,5.77319267]
[1771294083191,6.82386239,86.44,86.376,5.77319267]
[1771294083389,6.82386239,86.44,86.325,34.86]
[1771294083390,4.76051766,86.468,86.384,5.77319267]
[1771294083590,4.74099023,86.459,86.384,5.77319267]
[1771294083784,6.82386239,86.46,86.384,5.77319267]
[1771294083785,4.74099023,86.444,86.384,5.77319267]
[1771294083987,4.74099023,86.444,86.351,5.77319267]
[1771294084184,4.7127292,86.439,86.366,5.77319267]
[1771294085786,6.82386239,86.44,86.366,5.77319267]
[1771294085787,4.66953595,86.437,86.366,5.77319267]
[1771294086889,4.62536789,86.412,86.343,5.77319267]
[1771294087987,4.62536789,86.412,86.356,5.77319267]
[1771294088194,10.4197,86.422,86.356,5.77319267]
[1771294088684,10.4197,86.422,86.33,79.76386239]
[1771294088685,4.53248926,86.429,86.35,6.82386239]
[1771294088892,4.53248926,86.429,86.358,5.77319267]
[1771294089594,4.49140907,86.427,86.358,5.77319267]
[1771294089787,4.49140907,86.419,86.358,5.77319267]
[1771294090696,4.47313853,86.408,86.358,5.77319267]
[1771294091788,10.42,86.42,86.358,5.77319267]
[1771294092197,4.46054681,86.419,86.358,5.77319267]
[1771294092397,10.4218,86.405,86.358,5.77319267]
[1771294092794,4.43869064,86.415,86.358,5.77319267]
[1771294094201,4.38140635,86.436,86.358,5.77319267]
[1771294095199,4.35543387,86.434,86.369,5.8039854]
[1771294095695,10.4188,86.43,86.373,5.8039854]
[1771294095896,4.35543387,86.434,86.373,5.8039854]
[1771294096397,4.33730611,86.421,86.364,10.4266]
[1771294097190,4.31673059,86.419,86.357,5.8039854]
[1771294098805,4.43811226,86.436,86.357,5.8039854]
[1771294099192,10.4181,86.435,86.379,5.8039854]
[1771294099793,4.43811226,86.436,86.381,5.8039854]
[1771294099999,10.4168,86.446,86.381,5.8039854]
[1771294100601,10.4168,86.446,86.39,5.8039854]
[1771294101402,10.4168,86.446,86.394,10.423]
[1771294101610,4.3774912,86.441,86.39,5.8039854]
[1771294102611,4.36706117,86.438,86.367,10.4263]
[1771294102813,4.36706117,86.438,86.364,5.8039854]
[1771294103312,4.36304715,86.423,86.365,10.4265]
[1771294103714,4.36304715,86.423,86.366,5.8039854]
[1771294104410,10.4208,86.414,86.366,5.8039854]
[1771294104610,4.36304715,86.423,86.33,6.82386239]
[1771294104611,4.36304715,86.423,86.347,5.8039854]
[1771294104807,4.33448665,86.419,86.347,5.8039854]
[1771294105313,10.4219,86.404,86.348,5.8039854]
[1771294105513,4.33448665,86.419,86.348,5.8039854]
[1771294105712,10.4204,86.416,86.356,10.4276]
[1771294105917,4.31568983,86.415,86.348,5.8039854]
[1771294106613,10.4222,86.402,86.35,10.4283]
[1771294106809,4.31568983,86.415,86.348,5.8039854]
[1771294108708,4.31568983,86.415,86.367,10.4263]
[1771294108913,4.31568983,86.415,86.334,5.8039854]
[1771294109305,4.31568983,86.415,86.34,5.8039854]
[1771294109617,10.4228,86.397,86.341,5.8039854]
[1771294109812,4.31775134,86.399,86.325,5.8039854]
[1771294110416,10.424,86.387,86.326,10.4313]
[1771294110615,14.72102864,86.387,86.327,5.8039854]
[1771294110817,4.29702864,86.386,86.327,5.8039854]
[1771294111315,4.29328871,86.4,86.327,5.8039854]
[1771294111517,4.29328871,86.4,86.329,5.8039854]
[1771294111715,4.27940412,86.398,86.329,5.8039854]
[1771294112820,10.4255,86.374,86.329,5.8039854]
[1771294113021,4.28073426,86.373,86.311,5.8039854]
[1771294113520,4.26719752,86.395,86.314,5.8039854]
[1771294114020,4.26399347,86.394,86.323,5.8039854]
[1771294114422,72.94,86.414,86.3,28.20857579]
[1771294114423,4.26399347,86.411,86.33,5.8039854]
[1771294114619,4.26399347,86.411,86.3,6.82516129]
[1771294114620,4.26399347,86.411,86.333,5.8039854]
[1771294114915,4.25058955,86.409,86.333,5.8039854]
[1771294115219,4.24698963,86.429,86.348,5.8039854]
[1771294115921,4.33187517,86.415,86.348,5.8039854]
[1771294116522,4.31874601,86.401,86.348,5.8039854]